[Event "*** Titled Tuesday Blitz"]
[Site "Chess.com"]
[Date "2020.05.12"]
[Round "7"]
[White "Aradej"]
[Black "dennisodessa"]
[Result "0-1"]
[WhiteElo "2482"]
[BlackElo "2331"]
[TimeControl "180+1"]
[EndTime "11:16:01 PDT"]
[Termination "dennisodessa won by checkmate"]

1. e4 {[%clk 0:03:00.9]} 1... e6 {[%clk 0:02:57.4]} 2. d3 {[%clk 0:03:00]} 2...
c5 {[%clk 0:02:57.3]} 3. Nf3 {[%clk 0:02:58.9]} 3... Nc6 {[%clk 0:02:58.2]} 4.
g3 {[%clk 0:02:59.1]} 4... g6 {[%clk 0:02:58.4]} 5. Bg2 {[%clk 0:02:59.4]} 5...
Bg7 {[%clk 0:02:59]} 6. O-O {[%clk 0:03:00]} 6... Nge7 {[%clk 0:02:59.7]} 7. c3
{[%clk 0:03:00.4]} 7... O-O {[%clk 0:02:58.6]} 8. d4 {[%clk 0:03:00.3]} 8...
cxd4 {[%clk 0:02:35.5]} 9. cxd4 {[%clk 0:02:59.7]} 9... Qb6 {[%clk 0:02:36]} 10.
d5 {[%clk 0:02:43.9]} 10... Bxb2 {[%clk 0:02:19.9]} 11. Bxb2 {[%clk 0:02:41.3]}
11... Qxb2 {[%clk 0:02:20.8]} 12. dxc6 {[%clk 0:02:29.5]} 12... Qxa1 {[%clk
0:02:06.5]} 13. cxd7 {[%clk 0:02:29.4]} 13... Nc6 {[%clk 0:01:55.4]} 14. dxc8=Q
{[%clk 0:02:26.1]} 14... Raxc8 {[%clk 0:01:56.3]} 15. Qb3 {[%clk 0:02:24.5]}
15... Nd4 {[%clk 0:01:40.3]} 16. Nxd4 {[%clk 0:02:20.9]} 16... Qxd4 {[%clk
0:01:41.2]} 17. Qxb7 {[%clk 0:02:20.1]} 17... Rc2 {[%clk 0:01:40.8]} 18. Qb3
{[%clk 0:01:56.9]} 18... Rfc8 {[%clk 0:01:36.1]} 19. h4 {[%clk 0:01:56.6]} 19...
Rb2 {[%clk 0:01:22.8]} 20. Qf3 {[%clk 0:01:41.4]} 20... Rcc2 {[%clk 0:01:15]}
21. a4 {[%clk 0:01:37.3]} 21... Qxa4 {[%clk 0:00:51.7]} 22. Qf6 {[%clk
0:01:32.2]} 22... Qb4 {[%clk 0:00:47.6]} 23. h5 {[%clk 0:01:26.9]} 23... Rxb1
{[%clk 0:00:45.7]} 24. Qd8+ {[%clk 0:01:09.3]} 24... Kg7 {[%clk 0:00:45.5]} 25.
e5 {[%clk 0:01:06.7]} 25... Rxf1+ {[%clk 0:00:38.1]} 26. Bxf1 {[%clk 0:01:06.6]}
26... Qf8 {[%clk 0:00:28.2]} 27. Qf6+ {[%clk 0:00:54.5]} 27... Kg8 {[%clk
0:00:28.2]} 28. hxg6 {[%clk 0:00:47.1]} 28... hxg6 {[%clk 0:00:27.5]} 29. Bd3
{[%clk 0:00:47.6]} 29... Rc1+ {[%clk 0:00:15.4]} 30. Kg2 {[%clk 0:00:47.7]}
30... Qh6 {[%clk 0:00:15]} 31. Qd8+ {[%clk 0:00:42.9]} 31... Kh7 {[%clk
0:00:14.7]} 32. Qe7 {[%clk 0:00:39.6]} 32... Qh1# {[%clk 0:00:14]} 0-1

[Event "*** Titled Tuesday Blitz"]
[Site "Chess.com"]
[Date "2020.05.12"]
[Round "7"]
[White "quesfr"]
[Black "Keks2017"]
[Result "0-1"]
[WhiteElo "2280"]
[BlackElo "2450"]
[TimeControl "180+1"]
[EndTime "11:16:01 PDT"]
[Termination "Keks2017 won on time"]

1. e4 {[%clk 0:03:00.9]} 1... d6 {[%clk 0:02:59.7]} 2. d4 {[%clk 0:03:00.5]}
2... Nf6 {[%clk 0:02:59.7]} 3. Nc3 {[%clk 0:03:01]} 3... g6 {[%clk 0:02:59.7]}
4. f4 {[%clk 0:03:01.6]} 4... Bg7 {[%clk 0:02:59.6]} 5. Nf3 {[%clk 0:03:01.9]}
5... c5 {[%clk 0:02:59.7]} 6. dxc5 {[%clk 0:03:00.1]} 6... Qa5 {[%clk
0:02:59.5]} 7. Qd4 {[%clk 0:03:00]} 7... Nc6 {[%clk 0:02:58.1]} 8. Bb5 {[%clk
0:02:46.3]} 8... Bd7 {[%clk 0:02:57.9]} 9. Qa4 {[%clk 0:02:43.6]} 9... Qxa4
{[%clk 0:02:56.2]} 10. Bxa4 {[%clk 0:02:41.4]} 10... Nb4 {[%clk 0:02:37.1]} 11.
Bb3 {[%clk 0:02:15]} 11... dxc5 {[%clk 0:02:36.4]} 12. Ne5 {[%clk 0:01:53]}
12... Be6 {[%clk 0:02:19.9]} 13. Ba4+ {[%clk 0:01:29.2]} 13... Kf8 {[%clk
0:02:19.3]} 14. a3 {[%clk 0:01:23.5]} 14... Na6 {[%clk 0:02:19]} 15. O-O {[%clk
0:01:09.5]} 15... Ne8 {[%clk 0:02:04.8]} 16. Nd5 {[%clk 0:00:51.9]} 16... Nd6
{[%clk 0:01:54.3]} 17. Nc3 {[%clk 0:00:35]} 17... Nc7 {[%clk 0:01:41.6]} 18. Be3
{[%clk 0:00:33.2]} 18... b6 {[%clk 0:01:19.8]} 19. Bc6 {[%clk 0:00:30.4]} 19...
Rd8 {[%clk 0:01:14.9]} 20. Rae1 {[%clk 0:00:26.4]} 20... Bxe5 {[%clk 0:01:09.1]}
21. fxe5 {[%clk 0:00:24.9]} 21... Nc4 {[%clk 0:01:07.8]} 22. Bc1 {[%clk
0:00:22.8]} 22... Kg7 {[%clk 0:01:06.2]} 23. b3 {[%clk 0:00:20.4]} 23... Na5
{[%clk 0:01:05.8]} 24. Rd1 {[%clk 0:00:17.6]} 24... Nxc6 {[%clk 0:01:05]} 25.
Bg5 {[%clk 0:00:12.6]} 25... h6 {[%clk 0:00:59.2]} 26. Bh4 {[%clk 0:00:12]}
26... g5 {[%clk 0:00:59]} 27. Bg3 {[%clk 0:00:11.3]} 27... Rxd1 {[%clk
0:00:58.5]} 28. Rxd1 {[%clk 0:00:09.6]} 28... Rd8 {[%clk 0:00:57.9]} 29. Rf1
{[%clk 0:00:03.9]} 29... Rd2 {[%clk 0:00:55.3]} 30. h4 {[%clk 0:00:02]} 30...
Rxc2 {[%clk 0:00:54.1]} 31. Nd1 {[%clk 0:00:01.1]} 31... Nd4 {[%clk 0:00:47.5]}
32. Ne3 {[%clk 0:00:01.6]} 32... Rc3 {[%clk 0:00:47.1]} 0-1

[Event "*** Titled Tuesday Blitz"]
[Site "Chess.com"]
[Date "2020.05.12"]
[Round "7"]
[White "kai_nov"]
[Black "Shuvalov"]
[Result "0-1"]
[WhiteElo "2250"]
[BlackElo "2442"]
[TimeControl "180+1"]
[EndTime "11:16:01 PDT"]
[Termination "Shuvalov won by resignation"]

1. d4 {[%clk 0:03:00.9]} 1... d5 {[%clk 0:02:58.2]} 2. c4 {[%clk 0:02:57.7]}
2... c6 {[%clk 0:02:58.1]} 3. Nf3 {[%clk 0:02:57.4]} 3... Nf6 {[%clk 0:02:57]}
4. e3 {[%clk 0:02:56.5]} 4... a6 {[%clk 0:02:53.3]} 5. Nbd2 {[%clk 0:02:54.7]}
5... Bf5 {[%clk 0:02:52.9]} 6. Be2 {[%clk 0:02:45]} 6... h6 {[%clk 0:02:52.4]}
7. O-O {[%clk 0:02:42.5]} 7... e6 {[%clk 0:02:52.7]} 8. Qb3 {[%clk 0:02:36.8]}
8... Ra7 {[%clk 0:02:49.1]} 9. Ne5 {[%clk 0:02:27.9]} 9... Nbd7 {[%clk
0:02:48.6]} 10. f4 {[%clk 0:02:20.1]} 10... Nxe5 {[%clk 0:02:48.2]} 11. fxe5
{[%clk 0:02:19.5]} 11... Ne4 {[%clk 0:02:47.4]} 12. Nxe4 {[%clk 0:02:18.1]}
12... Bxe4 {[%clk 0:02:47.2]} 13. Bd3 {[%clk 0:01:43.6]} 13... Bxd3 {[%clk
0:02:39.5]} 14. Qxd3 {[%clk 0:01:43.6]} 14... Be7 {[%clk 0:02:38.4]} 15. c5
{[%clk 0:01:41.2]} 15... O-O {[%clk 0:02:37.4]} 16. e4 {[%clk 0:01:31.9]} 16...
dxe4 {[%clk 0:02:36.9]} 17. Qxe4 {[%clk 0:01:32.1]} 17... Ra8 {[%clk 0:02:30.5]}
18. Be3 {[%clk 0:01:27.6]} 18... Qd7 {[%clk 0:02:22.3]} 19. Rf3 {[%clk
0:01:25.2]} 19... f5 {[%clk 0:02:02.2]} 20. exf6 {[%clk 0:01:23.3]} 20... Rxf6
{[%clk 0:01:58.9]} 21. Raf1 {[%clk 0:01:16.7]} 21... Raf8 {[%clk 0:01:58.1]} 22.
Rxf6 {[%clk 0:01:12.5]} 22... Rxf6 {[%clk 0:01:57.9]} 23. Rxf6 {[%clk 0:01:12]}
23... Bxf6 {[%clk 0:01:58.8]} 24. h3 {[%clk 0:01:05.9]} 24... Kf7 {[%clk
0:01:56.7]} 25. Kf2 {[%clk 0:01:03.9]} 25... Qd5 {[%clk 0:01:53.7]} 26. Qxd5
{[%clk 0:01:02.2]} 26... exd5 {[%clk 0:01:54.6]} 27. g4 {[%clk 0:01:02]} 27...
Ke6 {[%clk 0:01:52.5]} 28. Kf3 {[%clk 0:01:01.4]} 28... Bd8 {[%clk 0:01:48.4]}
29. Bf4 {[%clk 0:00:59.1]} 29... Bf6 {[%clk 0:01:48.1]} 30. Ke3 {[%clk
0:00:56.2]} 30... Be7 {[%clk 0:01:32.2]} 31. Be5 {[%clk 0:00:54.5]} 31... g6
{[%clk 0:01:30.7]} 32. Bf4 {[%clk 0:00:52.1]} 32... h5 {[%clk 0:01:29.9]} 33.
Be5 {[%clk 0:00:46]} 33... Bxc5 {[%clk 0:01:26.5]} 34. gxh5 {[%clk 0:00:38.4]}
34... gxh5 {[%clk 0:01:25.5]} 35. Kf4 {[%clk 0:00:38.6]} 35... Bd6 {[%clk
0:01:18.6]} 36. Bxd6 {[%clk 0:00:30]} 36... Kxd6 {[%clk 0:01:19.5]} 37. Kg5
{[%clk 0:00:30.4]} 37... c5 {[%clk 0:01:19.6]} 38. dxc5+ {[%clk 0:00:21.4]}
38... Ke5 {[%clk 0:01:07.6]} 39. Kxh5 {[%clk 0:00:20.5]} 39... d4 {[%clk
0:01:07.4]} 40. Kg4 {[%clk 0:00:18]} 40... Ke4 {[%clk 0:01:07.4]} 41. Kg3 {[%clk
0:00:17.6]} 41... Ke3 {[%clk 0:01:07.2]} 42. c6 {[%clk 0:00:16.9]} 42... bxc6
{[%clk 0:01:06.9]} 43. h4 {[%clk 0:00:16.4]} 43... d3 {[%clk 0:01:07.1]} 44. h5
{[%clk 0:00:16.7]} 44... d2 {[%clk 0:01:07.6]} 45. h6 {[%clk 0:00:17.1]} 45...
d1=Q {[%clk 0:01:07.6]} 46. h7 {[%clk 0:00:17.4]} 46... Qh5 {[%clk 0:01:07.6]}
47. b4 {[%clk 0:00:16.1]} 47... Qxh7 {[%clk 0:01:07.2]} 0-1

[Event "*** Titled Tuesday Blitz"]
[Site "Chess.com"]
[Date "2020.05.12"]
[Round "7"]
[White "Volodar_Murzin"]
[Black "swimmerchess"]
[Result "1/2-1/2"]
[WhiteElo "2754"]
[BlackElo "2845"]
[TimeControl "180+1"]
[EndTime "11:16:02 PDT"]
[Termination "Game drawn by repetition"]

1. d4 {[%clk 0:03:00.9]} 1... Nf6 {[%clk 0:02:59.9]} 2. Nf3 {[%clk 0:03:00.8]}
2... g6 {[%clk 0:03:00.2]} 3. Bg5 {[%clk 0:03:00.5]} 3... Bg7 {[%clk 0:03:00.4]}
4. Nbd2 {[%clk 0:03:00.2]} 4... O-O {[%clk 0:03:00.8]} 5. e3 {[%clk 0:02:59.9]}
5... d6 {[%clk 0:02:59]} 6. c3 {[%clk 0:02:59.5]} 6... b6 {[%clk 0:02:59.3]} 7.
Bd3 {[%clk 0:02:59]} 7... Bb7 {[%clk 0:02:59.7]} 8. O-O {[%clk 0:02:59]} 8...
Nbd7 {[%clk 0:02:59.9]} 9. Qe2 {[%clk 0:02:59.3]} 9... e5 {[%clk 0:02:59.5]} 10.
dxe5 {[%clk 0:02:57.8]} 10... dxe5 {[%clk 0:02:59.3]} 11. Ba6 {[%clk 0:02:54.5]}
11... Qc8 {[%clk 0:02:58.9]} 12. Bxb7 {[%clk 0:02:53.9]} 12... Qxb7 {[%clk
0:02:59.8]} 13. Bxf6 {[%clk 0:02:53.7]} 13... Bxf6 {[%clk 0:02:58.3]} 14. Rfd1
{[%clk 0:02:51.3]} 14... Nc5 {[%clk 0:02:57.1]} 15. Nb3 {[%clk 0:02:49.3]} 15...
e4 {[%clk 0:02:45.4]} 16. Nfd2 {[%clk 0:02:45.3]} 16... Ne6 {[%clk 0:02:37]} 17.
Qg4 {[%clk 0:02:33.8]} 17... Rad8 {[%clk 0:02:16]} 18. Nxe4 {[%clk 0:02:29.4]}
18... Bg7 {[%clk 0:02:12.3]} 19. Qf3 {[%clk 0:02:28]} 19... Qa6 {[%clk
0:02:07.9]} 20. Nd4 {[%clk 0:02:25.8]} 20... Nxd4 {[%clk 0:01:50.8]} 21. exd4
{[%clk 0:02:25.7]} 21... Qb5 {[%clk 0:01:50.7]} 22. b3 {[%clk 0:02:18.3]} 22...
a5 {[%clk 0:01:50.7]} 23. Qf4 {[%clk 0:01:18.8]} 23... Qc6 {[%clk 0:01:46.4]}
24. Rd3 {[%clk 0:00:54.4]} 24... Rfe8 {[%clk 0:01:42.4]} 25. Re3 {[%clk
0:00:53.6]} 25... Re7 {[%clk 0:01:40.4]} 26. Rae1 {[%clk 0:00:51.4]} 26... Rde8
{[%clk 0:01:40.7]} 27. h3 {[%clk 0:00:51.2]} 27... h6 {[%clk 0:01:37.4]} 28. Nd2
{[%clk 0:00:47.8]} 28... Rxe3 {[%clk 0:01:31.2]} 29. Rxe3 {[%clk 0:00:47.4]}
29... Rxe3 {[%clk 0:01:31.9]} 30. Qxe3 {[%clk 0:00:47.6]} 30... a4 {[%clk
0:01:32.8]} 31. c4 {[%clk 0:00:34.3]} 31... axb3 {[%clk 0:01:22.6]} 32. axb3
{[%clk 0:00:34]} 32... b5 {[%clk 0:01:23.2]} 33. d5 {[%clk 0:00:32]} 33... Qd7
{[%clk 0:01:23.3]} 34. Ne4 {[%clk 0:00:31.7]} 34... bxc4 {[%clk 0:01:21.4]} 35.
bxc4 {[%clk 0:00:32.6]} 35... Qa4 {[%clk 0:01:22.1]} 36. Qd3 {[%clk 0:00:31.6]}
36... Qa1+ {[%clk 0:01:21.4]} 37. Kh2 {[%clk 0:00:31.3]} 37... Qe5+ {[%clk
0:01:22.1]} 38. g3 {[%clk 0:00:31.4]} 38... h5 {[%clk 0:01:22]} 39. h4 {[%clk
0:00:30]} 39... Bf8 {[%clk 0:01:18]} 40. Kg2 {[%clk 0:00:29.7]} 40... Kg7 {[%clk
0:01:15.7]} 41. c5 {[%clk 0:00:28.5]} 41... Be7 {[%clk 0:01:12.3]} 42. d6 {[%clk
0:00:26.9]} 42... cxd6 {[%clk 0:01:12.3]} 43. cxd6 {[%clk 0:00:27.6]} 43... Bd8
{[%clk 0:01:12.1]} 44. d7 {[%clk 0:00:27.8]} 44... Kf8 {[%clk 0:01:10.8]} 45.
Qa3+ {[%clk 0:00:18.6]} 45... Qe7 {[%clk 0:01:10]} 46. Qd3 {[%clk 0:00:17.9]}
46... Qe5 {[%clk 0:01:09.4]} 47. Qa3+ {[%clk 0:00:16.9]} 47... Qe7 {[%clk
0:01:09.5]} 48. Qd3 {[%clk 0:00:17.2]} 48... Qe5 {[%clk 0:01:09.8]} 1/2-1/2

[Event "*** Titled Tuesday Blitz"]
[Site "Chess.com"]
[Date "2020.05.12"]
[Round "7"]
[White "ASVZ"]
[Black "dragos420"]
[Result "1-0"]
[WhiteElo "2376"]
[BlackElo "2504"]
[TimeControl "180+1"]
[EndTime "11:16:02 PDT"]
[Termination "ASVZ won by resignation"]

1. e4 {[%clk 0:03:00.9]} 1... e5 {[%clk 0:02:58.4]} 2. Nf3 {[%clk 0:03:00.6]}
2... Nc6 {[%clk 0:02:59.3]} 3. Nc3 {[%clk 0:03:01.4]} 3... Nf6 {[%clk
0:02:59.2]} 4. Bb5 {[%clk 0:03:01.7]} 4... Bb4 {[%clk 0:02:58.3]} 5. O-O {[%clk
0:03:01.9]} 5... O-O {[%clk 0:02:57.2]} 6. d3 {[%clk 0:03:01.6]} 6... Bxc3
{[%clk 0:02:57.8]} 7. bxc3 {[%clk 0:03:01.6]} 7... d6 {[%clk 0:02:58.7]} 8. Bxc6
{[%clk 0:03:01.5]} 8... bxc6 {[%clk 0:02:58.4]} 9. Bg5 {[%clk 0:03:02.4]} 9...
c5 {[%clk 0:02:51.4]} 10. Rb1 {[%clk 0:03:02]} 10... Be6 {[%clk 0:02:50.7]} 11.
c4 {[%clk 0:03:01.7]} 11... Qe7 {[%clk 0:02:43.3]} 12. Rb7 {[%clk 0:02:54.7]}
12... Bc8 {[%clk 0:02:38]} 13. Rb3 {[%clk 0:02:53.9]} 13... Qe6 {[%clk
0:02:31.7]} 14. Bxf6 {[%clk 0:02:54.1]} 14... Qxf6 {[%clk 0:02:32.6]} 15. Nd2
{[%clk 0:02:54.8]} 15... Qg6 {[%clk 0:02:25.3]} 16. f4 {[%clk 0:02:46.7]} 16...
exf4 {[%clk 0:02:25.5]} 17. Rxf4 {[%clk 0:02:46.6]} 17... f5 {[%clk 0:02:25.1]}
18. Qf3 {[%clk 0:02:40.6]} 18... Bd7 {[%clk 0:02:08.8]} 19. exf5 {[%clk
0:02:03.5]} 19... Bxf5 {[%clk 0:01:57.9]} 20. Ne4 {[%clk 0:02:01]} 20... Be6
{[%clk 0:01:38.5]} 21. Ng3 {[%clk 0:01:46.7]} 21... Rxf4 {[%clk 0:01:34.7]} 22.
Qxa8+ {[%clk 0:01:43.1]} 22... Rf8 {[%clk 0:01:34]} 23. Rb8 {[%clk 0:01:42.5]}
23... Qf7 {[%clk 0:01:23.8]} 24. Rxf8+ {[%clk 0:01:32]} 24... Qxf8 {[%clk
0:01:24.7]} 25. Qxa7 {[%clk 0:01:32.3]} 25... Qf4 {[%clk 0:01:06.5]} 26. Qb8+
{[%clk 0:01:31.9]} 26... Kf7 {[%clk 0:01:06.6]} 27. Qxc7+ {[%clk 0:01:32.1]}
27... Kg6 {[%clk 0:01:07.2]} 28. Nf1 {[%clk 0:01:25.6]} 28... Qd4+ {[%clk
0:01:02.5]} 29. Kh1 {[%clk 0:01:26]} 29... Qf2 {[%clk 0:01:02]} 30. h3 {[%clk
0:01:21.5]} 30... Qxf1+ {[%clk 0:01:01.2]} 31. Kh2 {[%clk 0:01:22.2]} 31... Qf4+
{[%clk 0:01:01.8]} 32. Kh1 {[%clk 0:01:22.6]} 32... h5 {[%clk 0:00:42.8]} 33. a4
{[%clk 0:01:22.5]} 33... h4 {[%clk 0:00:36.4]} 34. a5 {[%clk 0:01:22.8]} 34...
Qf1+ {[%clk 0:00:27]} 35. Kh2 {[%clk 0:01:22.7]} 35... Qf4+ {[%clk 0:00:26.6]}
36. Kh1 {[%clk 0:01:23.2]} 36... Qc1+ {[%clk 0:00:21.5]} 37. Kh2 {[%clk
0:01:23]} 37... Qxc2 {[%clk 0:00:19.9]} 38. Qxd6 {[%clk 0:01:22]} 38... Kf7
{[%clk 0:00:18.4]} 39. a6 {[%clk 0:01:20.1]} 39... Qa2 {[%clk 0:00:14.9]} 40.
Qc7+ {[%clk 0:01:19.6]} 40... Kf6 {[%clk 0:00:14.2]} 41. a7 {[%clk 0:01:20.5]}
41... Kg6 {[%clk 0:00:06.7]} 42. Qb8 {[%clk 0:01:08]} 42... Bxh3 {[%clk
0:00:02.6]} 43. a8=Q {[%clk 0:01:08.2]} 43... Qxa8 {[%clk 0:00:01.5]} 44. Qxa8
{[%clk 0:01:08]} 44... Bf5 {[%clk 0:00:02.4]} 1-0

[Event "*** Titled Tuesday Blitz"]
[Site "Chess.com"]
[Date "2020.05.12"]
[Round "7"]
[White "Koalaskakistis"]
[Black "mirochka"]
[Result "1-0"]
[WhiteElo "2454"]
[BlackElo "2181"]
[TimeControl "180+1"]
[EndTime "11:16:04 PDT"]
[Termination "Koalaskakistis won on time"]

1. f4 {[%clk 0:03:00.9]} 1... d5 {[%clk 0:02:56.4]} 2. Nf3 {[%clk 0:03:00.5]}
2... Nf6 {[%clk 0:02:53.9]} 3. g3 {[%clk 0:03:00.5]} 3... Bg4 {[%clk 0:02:45.7]}
4. Bg2 {[%clk 0:03:00.4]} 4... e6 {[%clk 0:02:42.5]} 5. O-O {[%clk 0:02:56.8]}
5... Nbd7 {[%clk 0:02:41.8]} 6. d3 {[%clk 0:02:55.6]} 6... c6 {[%clk 0:02:36.6]}
7. Nc3 {[%clk 0:02:51.3]} 7... b5 {[%clk 0:02:16.8]} 8. e4 {[%clk 0:02:32.5]}
8... b4 {[%clk 0:02:10.2]} 9. Ne2 {[%clk 0:02:29.2]} 9... dxe4 {[%clk
0:02:05.9]} 10. dxe4 {[%clk 0:02:23]} 10... Qb6+ {[%clk 0:02:04.6]} 11. Kh1
{[%clk 0:02:12.6]} 11... Nxe4 {[%clk 0:01:58.5]} 12. Nfd4 {[%clk 0:02:09.1]}
12... Ndf6 {[%clk 0:01:33.1]} 13. Be3 {[%clk 0:01:43]} 13... Rd8 {[%clk
0:01:30.4]} 14. Qe1 {[%clk 0:01:22.3]} 14... Bc5 {[%clk 0:01:09.4]} 15. c3
{[%clk 0:01:15.8]} 15... O-O {[%clk 0:01:06]} 16. Bg1 {[%clk 0:01:04.5]} 16...
Bf5 {[%clk 0:00:25.6]} 17. Rc1 {[%clk 0:00:59.2]} 17... bxc3 {[%clk 0:00:20.3]}
18. bxc3 {[%clk 0:01:00.1]} 18... Nd5 {[%clk 0:00:19.7]} 19. g4 {[%clk
0:00:55.5]} 19... Bxg4 {[%clk 0:00:16]} 20. Bxe4 {[%clk 0:00:54.4]} 20... Nf6
{[%clk 0:00:16]} 21. Bg2 {[%clk 0:00:51.4]} 21... Qa5 {[%clk 0:00:14.3]} 22.
Nxc6 {[%clk 0:00:49.4]} 22... Qxa2 {[%clk 0:00:13]} 23. Bxc5 {[%clk 0:00:47.3]}
23... Qxe2 {[%clk 0:00:04.7]} 24. Bxf8 {[%clk 0:00:40]} 24... Rxf8 {[%clk
0:00:03.2]} 25. Qxe2 {[%clk 0:00:33.9]} 25... Bxe2 {[%clk 0:00:02.9]} 26. Rf2
{[%clk 0:00:34.8]} 26... Bc4 {[%clk 0:00:02.3]} 27. Nxa7 {[%clk 0:00:33.7]}
27... Nd5 {[%clk 0:00:02.4]} 28. Nc6 {[%clk 0:00:31.5]} 1-0

[Event "*** Titled Tuesday Blitz"]
[Site "Chess.com"]
[Date "2020.05.12"]
[Round "7"]
[White "Luibov_AN"]
[Black "alexwinter25"]
[Result "1-0"]
[WhiteElo "2133"]
[BlackElo "2323"]
[TimeControl "180+1"]
[EndTime "11:16:04 PDT"]
[Termination "Luibov_AN won on time"]

1. d4 {[%clk 0:03:00.9]} 1... d5 {[%clk 0:02:59.9]} 2. Nf3 {[%clk 0:03:01.8]}
2... e6 {[%clk 0:03:00.2]} 3. c4 {[%clk 0:03:02.4]} 3... Nf6 {[%clk 0:03:00.1]}
4. Nc3 {[%clk 0:03:02.9]} 4... Nbd7 {[%clk 0:02:59.8]} 5. e3 {[%clk 0:03:03.1]}
5... c6 {[%clk 0:03:00.2]} 6. Qc2 {[%clk 0:03:02.9]} 6... Bd6 {[%clk 0:03:00.4]}
7. Bd3 {[%clk 0:03:02.3]} 7... O-O {[%clk 0:02:58]} 8. b3 {[%clk 0:03:02.3]}
8... e5 {[%clk 0:02:53.4]} 9. cxd5 {[%clk 0:03:00.5]} 9... cxd5 {[%clk
0:02:53.3]} 10. dxe5 {[%clk 0:02:57.5]} 10... Nxe5 {[%clk 0:02:53.4]} 11. Nxe5
{[%clk 0:02:57.6]} 11... Bxe5 {[%clk 0:02:53.6]} 12. O-O {[%clk 0:02:57.6]}
12... Be6 {[%clk 0:02:38.2]} 13. Bb2 {[%clk 0:02:53.1]} 13... Rc8 {[%clk
0:02:37.8]} 14. Rac1 {[%clk 0:02:52.2]} 14... Bxh2+ {[%clk 0:02:28.6]} 15. Kxh2
{[%clk 0:02:51.6]} 15... Ng4+ {[%clk 0:02:28.9]} 16. Kg3 {[%clk 0:02:47.6]}
16... h5 {[%clk 0:02:09.4]} 17. Rh1 {[%clk 0:02:43.8]} 17... Qd6+ {[%clk
0:01:52.1]} 18. f4 {[%clk 0:02:41.8]} 18... Nxe3 {[%clk 0:01:42.3]} 19. Qe2
{[%clk 0:02:27.9]} 19... h4+ {[%clk 0:01:22.5]} 20. Rxh4 {[%clk 0:02:21.3]}
20... d4 {[%clk 0:01:02.1]} 21. Rch1 {[%clk 0:02:04.5]} 21... f5 {[%clk
0:00:30.4]} 22. Nb5 {[%clk 0:01:57.1]} 22... Qd5 {[%clk 0:00:20.7]} 23. Nxd4
{[%clk 0:01:40.4]} 23... Ng4 {[%clk 0:00:17.2]} 24. Qxe6+ {[%clk 0:01:26.9]}
24... Qxe6 {[%clk 0:00:16]} 25. Nxe6 {[%clk 0:01:26.7]} 25... Rfe8 {[%clk
0:00:12.4]} 26. Rh8+ {[%clk 0:01:20.6]} 26... Kf7 {[%clk 0:00:11.2]} 27. Ng5+
{[%clk 0:01:19.4]} 27... Kg6 {[%clk 0:00:09.9]} 28. Rxe8 {[%clk 0:01:03.7]}
28... Rxe8 {[%clk 0:00:10.8]} 29. Bc4 {[%clk 0:00:51.9]} 29... Re3+ {[%clk
0:00:10.3]} 30. Kh4 {[%clk 0:00:52.2]} 30... Nf2 {[%clk 0:00:06.4]} 31. Bf7+
{[%clk 0:00:40.1]} 31... Kh6 {[%clk 0:00:01.1]} 32. Rf1 {[%clk 0:00:37.4]} 1-0

[Event "*** Titled Tuesday Blitz"]
[Site "Chess.com"]
[Date "2020.05.12"]
[Round "7"]
[White "JozefKneht"]
[Black "Boudicca64"]
[Result "1-0"]
[WhiteElo "2370"]
[BlackElo "2037"]
[TimeControl "180+1"]
[EndTime "11:16:07 PDT"]
[Termination "JozefKneht won on time"]

1. e4 {[%clk 0:03:00.9]} 1... c5 {[%clk 0:02:59.7]} 2. Nf3 {[%clk 0:02:58.5]}
2... e6 {[%clk 0:02:59.7]} 3. d4 {[%clk 0:02:58]} 3... cxd4 {[%clk 0:03:00.6]}
4. Nxd4 {[%clk 0:02:58.2]} 4... Nf6 {[%clk 0:03:01.5]} 5. Nc3 {[%clk 0:02:57.9]}
5... Nc6 {[%clk 0:03:01.5]} 6. Ndb5 {[%clk 0:02:56.9]} 6... a6 {[%clk
0:03:01.4]} 7. Nd6+ {[%clk 0:02:55.8]} 7... Bxd6 {[%clk 0:03:02]} 8. Qxd6 {[%clk
0:02:55]} 8... b5 {[%clk 0:03:02.9]} 9. a3 {[%clk 0:02:44.7]} 9... Qe7 {[%clk
0:03:01.6]} 10. Bf4 {[%clk 0:02:41.8]} 10... e5 {[%clk 0:02:47.1]} 11. Qxe7+
{[%clk 0:02:40.2]} 11... Kxe7 {[%clk 0:02:47.1]} 12. Bg5 {[%clk 0:02:40.5]}
12... Nd4 {[%clk 0:02:22.3]} 13. O-O-O {[%clk 0:02:23.1]} 13... Bb7 {[%clk
0:02:17.6]} 14. f3 {[%clk 0:02:23.1]} 14... h6 {[%clk 0:02:14.8]} 15. Be3 {[%clk
0:02:22.7]} 15... Ne6 {[%clk 0:02:09.2]} 16. Be2 {[%clk 0:02:17.8]} 16... Rhd8
{[%clk 0:02:05.8]} 17. Bb6 {[%clk 0:02:13.8]} 17... Rdc8 {[%clk 0:02:02.7]} 18.
Rd2 {[%clk 0:02:10.7]} 18... Nf4 {[%clk 0:01:20]} 19. g3 {[%clk 0:01:48.1]}
19... Nxe2+ {[%clk 0:01:19.5]} 20. Rxe2 {[%clk 0:01:48.3]} 20... d6 {[%clk
0:01:05.1]} 21. Rd1 {[%clk 0:01:46.5]} 21... Rc4 {[%clk 0:01:00.4]} 22. Red2
{[%clk 0:01:45.3]} 22... Ne8 {[%clk 0:00:59.5]} 23. Nd5+ {[%clk 0:01:40.5]}
23... Bxd5 {[%clk 0:00:59.7]} 24. Rxd5 {[%clk 0:01:41]} 24... Rac8 {[%clk
0:01:00.1]} 25. c3 {[%clk 0:01:40.3]} 25... R8c6 {[%clk 0:00:58.2]} 26. Ba5
{[%clk 0:01:28.8]} 26... Rc8 {[%clk 0:00:49.2]} 27. Bb4 {[%clk 0:01:23.6]} 27...
R4c6 {[%clk 0:00:46.1]} 28. Rxe5+ {[%clk 0:01:22.9]} 28... Kf6 {[%clk
0:00:42.1]} 29. Red5 {[%clk 0:01:23]} 29... Ke6 {[%clk 0:00:41.4]} 30. Kb1
{[%clk 0:01:23.1]} 30... Ra8 {[%clk 0:00:30.8]} 31. Ba5 {[%clk 0:01:22]} 31...
Rac8 {[%clk 0:00:23.5]} 32. f4 {[%clk 0:01:13]} 32... Nf6 {[%clk 0:00:20.3]} 33.
f5+ {[%clk 0:01:09.1]} 33... Ke7 {[%clk 0:00:20]} 34. R5d4 {[%clk 0:01:08.8]}
34... Nd7 {[%clk 0:00:14.4]} 35. Bb4 {[%clk 0:01:06.8]} 35... Nc5 {[%clk
0:00:12.5]} 36. g4 {[%clk 0:01:05.2]} 36... Ra8 {[%clk 0:00:08.5]} 37. h4 {[%clk
0:01:04.2]} 37... a5 {[%clk 0:00:08.4]} 38. Rxd6 {[%clk 0:00:55.9]} 38... axb4
{[%clk 0:00:07.4]} 39. Rxc6 {[%clk 0:00:55.3]} 39... Nxe4 {[%clk 0:00:02.1]} 40.
axb4 {[%clk 0:00:54.5]} 1-0